fUSD/lending_fUSD_20260510
["ID","MTS","AMOUNT","RATE_DAILY","PERIOD"]
[421963255,1778376638000,-500.0,0.00010595,2]
[421963269,1778376638000,-500.0,0.00010595,2]
[421963271,1778376638000,-500.0,0.00010595,2]
[421963272,1778376638000,-297.77652657,0.00010595,2]
[421963273,1778376638000,-500.0,0.00010595,2]
[421963274,1778376638000,-500.0,0.00010595,2]
[421963187,1778376638000,-164.93935509,0.000103,2]
[421963244,1778376638000,-500.0,0.00010595,2]
[421963238,1778376638000,-500.0,0.00010595,2]
[421963265,1778376638000,-199.9293781,0.00010595,2]
[421963223,1778376638000,-500.0,0.00010595,2]
[421963236,1778376638000,-500.0,0.00010595,2]
[421963176,1778376638000,-1004.24206447,0.00010221,2]
[421963189,1778376638000,-168.24561221,0.000103,2]
[421963191,1778376638000,-410.59034972,0.000103,2]
[421963193,1778376638000,-500.31228504,0.000103,2]
[421963199,1778376638000,-412.01722018,0.000103,2]
[421963201,1778376638000,-500.0,0.000103,2]
[421963203,1778376638000,-500.0,0.000103,2]
[421963197,1778376638000,-500.0,0.000103,2]
[421963211,1778376638000,-12185.48,0.00010475,2]
[421963195,1778376638000,-502.21907443,0.000103,2]
[421963209,1778376638000,-9999.99,0.00010475,2]
[421963218,1778376638000,-255.0,0.00010592,2]
[421963205,1778376638000,-500.26033627,0.000103,2]
[421963220,1778376638000,-500.0,0.00010595,2]
[421963221,1778376638000,-500.0,0.00010595,2]
[421963230,1778376638000,-500.0,0.00010595,2]
[421963228,1778376638000,-500.0,0.00010595,2]
[421963242,1778376638000,-500.0,0.00010595,2]
[421963207,1778376638000,-500.0,0.00010321,2]
[421963216,1778376638000,-1301.25,0.00010529,2]
[421963213,1778376638000,-6147.33,0.00010493,2]
[421963317,1778376639000,-2000.0,0.00011436,2]
[421963319,1778376639000,-433.0,0.00011651,2]
[421963316,1778376639000,-500.0,0.00011417,2]
[421963320,1778376639000,-500.0,0.00011691,2]
[421963321,1778376639000,-3180.6264509,0.00011839,2]
[421963313,1778376639000,-1788.77294556,0.00011316,2]
[421963314,1778376639000,-371.44577367,0.00011396,2]
[421963315,1778376639000,-15460.18943964,0.00011401,2]
[421963310,1778376639000,-9653.88218217,0.00011307,2]
[421963311,1778376639000,-2000.0,0.00011316,2]
[421963331,1778376639000,-200.0,0.00012,2]
[421963309,1778376639000,-2351.0,0.000112,2]
[421963312,1778376639000,-2000.0,0.00011316,2]
[421963332,1778376639000,-200.0,0.00012,2]
[421963346,1778376639000,-249.0899146,0.00012329,2]
[421963322,1778376639000,-18307.3626692,0.00011839,2]
[421963329,1778376639000,-599444.26908714,0.00012,2]
[421963330,1778376639000,-2000.0,0.00012,2]
[421963323,1778376639000,-2500.0,0.00011864,2]
[421963326,1778376639000,-10000.0,0.000119,2]
[421963325,1778376639000,-9653.88218217,0.000119,2]
[421963324,1778376639000,-2500.0,0.00011864,2]
[421963327,1778376639000,-500.0,0.00011965,2]
[421963333,1778376639000,-1339.34980408,0.0001212,2]
[421963334,1778376639000,-200.0,0.0001212,2]
[421963337,1778376639000,-250.0,0.00012148,2]
[421963338,1778376639000,-648.61463089,0.00012239,2]
[421963303,1778376639000,-471.67170164,0.00011073,2]
[421963328,1778376639000,-15460.18943964,0.00011984,2]
[421963308,1778376639000,-169.67,0.00011155,2]
[421963282,1778376639000,-150.0,0.00010595,2]
[421963300,1778376639000,-150.0,0.00010959,2]
[421963283,1778376639000,-150.0,0.00010595,2]
[421963277,1778376639000,-500.0,0.00010595,2]
[421963279,1778376639000,-504.37215118,0.00010595,2]
[421963281,1778376639000,-510.23889792,0.00010595,2]
[421963278,1778376639000,-500.0,0.00010595,2]
[421963284,1778376639000,-150.0,0.00010595,2]
[421963339,1778376639000,-200.0,0.00012241,2]
[421963280,1778376639000,-500.0,0.00010595,2]
[421963287,1778376639000,-247.71841965,0.00010595,2]
[421963296,1778376639000,-500.0,0.00010848,2]
[421963294,1778376639000,-1000.0,0.00010848,2]
[421963288,1778376639000,-507.11882834,0.00010595,2]
[421963286,1778376639000,-500.0,0.00010595,2]
[421963306,1778376639000,-9653.88218217,0.00011099,2]
[421963291,1778376639000,-1500.0,0.00010768,2]
[421963295,1778376639000,-724.52588455,0.00010848,2]
[421963285,1778376639000,-150.0,0.00010595,2]
[421963297,1778376639000,-500.0,0.00010869,2]
[421963290,1778376639000,-1500.0,0.00010768,2]
[421963293,1778376639000,-1301.25,0.00010779,2]
[421963292,1778376639000,-1500.0,0.00010768,2]
[421963304,1778376639000,-9653.88218222,0.00011099,2]
[421963305,1778376639000,-9653.88218217,0.00011099,2]
[421963301,1778376639000,-239.71,0.00011024,2]
[421963299,1778376639000,-150.0,0.00010959,2]
[421963307,1778376639000,-500.0,0.00011143,2]
[421963298,1778376639000,-3426.84592819,0.000109,2]
[421963302,1778376639000,-1301.25,0.0001103,2]
[421963289,1778376639000,-156.41,0.00010646,2]
[421963345,1778376639000,-150.0,0.00012329,2]
[421963347,1778376639000,-150.0,0.00012329,2]
[421963343,1778376639000,-331.35505,0.00012316,2]
[421963388,1778376639000,-151.0,0.0001235,2]
[421963387,1778376639000,-500.0,0.0001235,2]
[421963376,1778376639000,-151.0,0.0001235,2]
[421963379,1778376639000,-500.0,0.0001235,2]
[421963375,1778376639000,-500.0,0.0001235,2]
[421963382,1778376639000,-151.0,0.0001235,2]
[421963377,1778376639000,-500.0,0.0001235,2]
[421963385,1778376639000,-151.0,0.0001235,2]
[421963381,1778376639000,-500.0,0.0001235,2]
[421963378,1778376639000,-151.0,0.0001235,2]
[421963383,1778376639000,-500.0,0.0001235,2]
[421963380,1778376639000,-500.0,0.0001235,2]
[421963384,1778376639000,-151.0,0.0001235,2]
[421963389,1778376639000,-500.0,0.0001235,2]
[421963393,1778376639000,-500.0,0.0001235,2]
[421963391,1778376639000,-500.0,0.0001235,2]
[421963394,1778376639000,-151.0,0.0001235,2]
[421963392,1778376639000,-151.0,0.0001235,2]
[421963396,1778376639000,-151.0,0.0001235,2]
[421963398,1778376639000,-500.0,0.0001235,2]
[421963402,1778376639000,-500.0,0.0001235,2]
[421963400,1778376639000,-500.0,0.0001235,2]
[421963401,1778376639000,-151.0,0.0001235,2]
[421963399,1778376639000,-151.0,0.0001235,2]
[421963390,1778376639000,-151.0,0.0001235,2]
[421963397,1778376639000,-151.0,0.0001235,2]
[421963395,1778376639000,-500.0,0.0001235,2]
[421963336,1778376639000,-239.71,0.00012126,2]
[421963403,1778376639000,-151.0,0.0001235,2]
[421963386,1778376639000,-151.0,0.0001235,2]
[421963371,1778376639000,-151.0,0.0001235,2]
[421963404,1778376639000,-500.0,0.0001235,2]
[421963369,1778376639000,-151.0,0.0001235,2]
[421963372,1778376639000,-500.0,0.0001235,2]
[421963335,1778376639000,-200.0,0.0001212,2]
[421963341,1778376639000,-2758.99,0.00012245,2]
[421963342,1778376639000,-1738.21,0.00012299,2]
[421963340,1778376639000,-200.0,0.00012241,2]
[421963349,1778376639000,-150.0,0.00012329,2]
[421963348,1778376639000,-246.68205029,0.00012329,2]
[421963361,1778376639000,-151.0,0.0001235,2]
[421963359,1778376639000,-151.0,0.0001235,2]
[421963350,1778376639000,-150.0,0.00012329,2]
[421963353,1778376639000,-150.0,0.00012329,2]
[421963354,1778376639000,-150.0,0.00012329,2]
[421963351,1778376639000,-150.0,0.00012329,2]
[421963352,1778376639000,-150.0,0.00012329,2]
[421963360,1778376639000,-500.0,0.0001235,2]
[421963357,1778376639000,-150.0,0.00012343,2]
[421963355,1778376639000,-262.22,0.00012329,2]
[421963368,1778376639000,-500.0,0.0001235,2]
[421963366,1778376639000,-151.0,0.0001235,2]
[421963363,1778376639000,-151.0,0.0001235,2]
[421963364,1778376639000,-500.0,0.0001235,2]
[421963374,1778376639000,-151.0,0.0001235,2]
[421963370,1778376639000,-151.0,0.0001235,2]
[421963367,1778376639000,-500.0,0.0001235,2]
[421963362,1778376639000,-500.0,0.0001235,2]
[421963356,1778376639000,-167.38,0.00012329,2]
[421963358,1778376639000,-200.0,0.0001235,2]
[421963373,1778376639000,-282.61545435,0.0001235,2]
[421963365,1778376639000,-151.0,0.0001235,2]
[421963442,1778376640000,-150.0,0.00012564,2]
[421963449,1778376640000,-169.66,0.0001261,2]
[421963446,1778376640000,-2000.0,0.0001258,2]
[421963445,1778376640000,-150.0,0.00012579,2]
[421963448,1778376640000,-150.0,0.00012609,2]
[421963434,1778376640000,-150.0,0.00012491,2]
[421963441,1778376640000,-150.0,0.0001255,2]
[421963440,1778376640000,-150.0,0.0001254,2]
[421963438,1778376640000,-150.0,0.0001252,2]
[421963432,1778376640000,-150.0,0.00012476,2]
[421963443,1778376640000,-150.0,0.00012565,2]
[421963444,1778376640000,-15460.18943964,0.00012567,2]
[421963447,1778376640000,-150.0,0.00012594,2]
[421963458,1778376640000,-150.0,0.00012697,2]
[421963452,1778376640000,-150.0,0.00012638,2]
[421963464,1778376640000,-150.0,0.0001275,2]
[421963462,1778376640000,-2758.99,0.00012735,2]
[421963463,1778376640000,-150.0,0.00012741,2]
[421963451,1778376640000,-150.0,0.00012623,2]
[421963453,1778376640000,-150.0,0.00012645,2]
[421963454,1778376640000,-150.0,0.00012653,2]
[421963456,1778376640000,-150.0,0.00012668,2]
[421963455,1778376640000,-150.0,0.00012659,2]
[421963461,1778376640000,-150.0,0.00012726,2]
[421963459,1778376640000,-150.0,0.00012707,2]
[421963435,1778376640000,-9653.88218217,0.00012492,2]
[421963457,1778376640000,-150.0,0.00012682,2]
[421963450,1778376640000,-150.0,0.00012612,2]
[421963436,1778376640000,-150.0,0.00012506,2]
[421963419,1778376640000,-150.0,0.00012376,2]
[421963433,1778376640000,-200.0,0.00012487,2]
[421963460,1778376640000,-150.0,0.00012712,2]
[421963415,1778376640000,-150.0,0.00012358,2]
[421963414,1778376640000,-2080.17592889,0.0001235,2]
[421963410,1778376640000,-151.0,0.0001235,2]
[421963409,1778376640000,-151.0,0.0001235,2]
[421963405,1778376640000,-151.0,0.0001235,2]
[421963411,1778376640000,-151.0,0.0001235,2]
[421963413,1778376640000,-151.0,0.0001235,2]
[421963408,1778376640000,-500.0,0.0001235,2]
[421963407,1778376640000,-151.0,0.0001235,2]
[421963406,1778376640000,-500.0,0.0001235,2]
[421963412,1778376640000,-151.0,0.0001235,2]
[421963417,1778376640000,-200.0,0.00012364,2]
[421963437,1778376640000,-150.0,0.00012518,2]
[421963427,1778376640000,-150.0,0.00012434,2]
[421963416,1778376640000,-200.0,0.00012364,2]
[421963418,1778376640000,-150.0,0.00012373,2]
[421963421,1778376640000,-150.0,0.00012402,2]
[421963425,1778376640000,-150.0,0.00012423,2]
[421963420,1778376640000,-150.0,0.00012388,2]
[421963424,1778376640000,-150.0,0.00012417,2]
[421963422,1778376640000,-983.7392912,0.00012412,2]
[421963426,1778376640000,-150.0,0.00012432,2]
[421963439,1778376640000,-150.0,0.00012535,2]
[421963428,1778376640000,-150.0,0.00012447,2]
[421963430,1778376640000,-150.0,0.00012461,2]
[421963429,1778376640000,-182.0,0.00012455,2]
[421963431,1778376640000,-150.0,0.0001247,2]
[421963423,1778376640000,-926.58073247,0.00012412,2]
[421963465,1778376640000,-150.0,0.00012754,2]
[421963520,1778376640000,-150.0,0.00013132,2]
[421963468,1778376640000,-150.0,0.00012785,2]
[421963501,1778376640000,-150.0,0.00012962,2]
[421963493,1778376640000,-200.0,0.00012898,2]
[421963502,1778376640000,-150.0,0.00012977,2]
[421963499,1778376640000,-150.0,0.00012947,2]
[421963513,1778376640000,-150.0,0.00013066,2]
[421963507,1778376640000,-150.0,0.00013014,2]
[421963508,1778376640000,-150.0,0.00013021,2]
[421963510,1778376640000,-150.0,0.00013037,2]
[421963514,1778376640000,-150.0,0.0001308,2]
[421963512,1778376640000,-150.0,0.00013065,2]
[421963505,1778376640000,-150.0,0.00012992,2]
[421963509,1778376640000,-150.0,0.00013036,2]
[421963511,1778376640000,-150.0,0.00013051,2]
[421963524,1778376640000,-150.0,0.00013168,2]
[421963515,1778376640000,-150.0,0.00013085,2]
[421963516,1778376640000,-9653.88218217,0.00013085,2]
[421963518,1778376640000,-150.0,0.00013109,2]
[421963519,1778376640000,-150.0,0.00013124,2]
[421963517,1778376640000,-150.0,0.00013095,2]
[421963526,1778376640000,-185.58,0.00013178,2]
[421963525,1778376640000,-150.0,0.00013172,2]
[421963522,1778376640000,-15460.18943964,0.0001315,2]
[421963521,1778376640000,-150.0,0.00013139,2]
[421963523,1778376640000,-150.0,0.00013154,2]
[421963527,1778376640000,-150.0,0.00013179,2]
[421963528,1778376640000,-150.0,0.00013183,2]
[421963467,1778376640000,-150.0,0.00012771,2]
[421963504,1778376640000,-150.0,0.0001299,2]
[421963498,1778376640000,-150.0,0.00012943,2]
[421963506,1778376640000,-150.0,0.00013006,2]
[421963503,1778376640000,-262.87,0.00012989,2]
[421963500,1778376640000,-150.0,0.00012961,2]
[421963473,1778376640000,-150.0,0.0001283,2]
[421963469,1778376640000,-150.0,0.000128,2]
[421963472,1778376640000,-736.0,0.00012816,2]
[421963466,1778376640000,-150.0,0.00012756,2]
[421963470,1778376640000,-150.0,0.00012801,2]
[421963471,1778376640000,-150.0,0.00012815,2]
[421963476,1778376640000,-150.0,0.00012848,2]
[421963475,1778376640000,-150.0,0.00012844,2]
[421963479,1778376640000,-150.0,0.00012874,2]
[421963488,1778376640000,-150.99,0.00012893,2]
[421963478,1778376640000,-150.0,0.00012859,2]
[421963487,1778376640000,-299.99,0.00012893,2]
[421963486,1778376640000,-499.99,0.00012893,2]
[421963477,1778376640000,-150.0,0.00012856,2]
[421963489,1778376640000,-9999.99,0.00012893,2]
[421963490,1778376640000,-4422.27,0.00012893,2]
[421963494,1778376640000,-2157.14243826,0.00012898,2]
[421963495,1778376640000,-150.0,0.00012903,2]
[421963496,1778376640000,-150.0,0.00012918,2]
[421963492,1778376640000,-150.0,0.00012896,2]
[421963485,1778376640000,-9999.99,0.00012893,2]
[421963497,1778376640000,-150.0,0.00012933,2]
[421963482,1778376640000,-519.92,0.00012893,2]
[421963481,1778376640000,-2845.7,0.00012893,2]
[421963483,1778376640000,-13871.08,0.00012893,2]
[421963480,1778376640000,-150.0,0.00012888,2]
[421963491,1778376640000,-18955.13,0.00012893,2]
[421963484,1778376640000,-999.99,0.00012893,2]
[421963570,1778376641000,-150.0,0.00013566,2]
[421963568,1778376641000,-193.46,0.00013555,2]
[421963569,1778376641000,-150.0,0.00013557,2]
[421963559,1778376641000,-150.0,0.00013463,2]
[421963574,1778376641000,-150.0,0.00013596,2]
[421963566,1778376641000,-150.0,0.00013537,2]
[421963567,1778376641000,-150.0,0.00013551,2]
[421963555,1778376641000,-200.0,0.00013446,2]
[421963562,1778376641000,-150.0,0.00013492,2]
[421963554,1778376641000,-150.0,0.00013433,2]
[421963571,1778376641000,-30702.45346757,0.0001357,2]
[421963565,1778376641000,-150.0,0.00013522,2]
[421963575,1778376641000,-150.0,0.00013604,2]
[421963576,1778376641000,-150.0,0.0001361,2]
[421963573,1778376641000,-150.0,0.00013593,2]
[421963577,1778376641000,-150.0,0.00013625,2]
[421963585,1778376641000,-500.0,0.00013698,2]
[421963583,1778376641000,-150.0,0.00013684,2]
[421963581,1778376641000,-150.0,0.00013669,2]
[421963588,1778376641000,-500.0,0.00013698,2]
[421963586,1778376641000,-504.95402475,0.00013698,2]
[421963587,1778376641000,-500.0,0.00013698,2]
[421963580,1778376641000,-150.0,0.00013654,2]
[421963578,1778376641000,-150.0,0.0001364,2]
[421963579,1778376641000,-150.0,0.00013651,2]
[421963584,1778376641000,-500.0,0.00013698,2]
[421963558,1778376641000,-150.0,0.00013462,2]
[421963572,1778376641000,-150.0,0.00013581,2]
[421963563,1778376641000,-150.0,0.00013507,2]
[421963531,1778376641000,-2758.99,0.00013225,2]
[421963557,1778376641000,-150.0,0.00013448,2]
[421963539,1778376641000,-150.0,0.00013277,2]
[421963529,1778376641000,-150.0,0.00013198,2]
[421963538,1778376641000,-150.0,0.00013274,2]
[421963530,1778376641000,-150.0,0.00013213,2]
[421963534,1778376641000,-239.71,0.00013229,2]
[421963537,1778376641000,-150.0,0.00013271,2]
[421963533,1778376641000,-150.0,0.00013227,2]
[421963535,1778376641000,-150.0,0.00013242,2]
[421963536,1778376641000,-150.0,0.00013257,2]
[421963532,1778376641000,-150.0,0.00013226,2]
[421963541,1778376641000,-150.0,0.00013301,2]
[421963544,1778376641000,-150.0,0.0001333,2]
[421963551,1778376641000,-150.0,0.00013404,2]
[421963542,1778376641000,-150.0,0.00013316,2]
[421963540,1778376641000,-150.0,0.00013286,2]
[421963543,1778376641000,-150.0,0.00013321,2]
[421963552,1778376641000,-150.0,0.00013415,2]
[421963549,1778376641000,-150.0,0.00013383,2]
[421963545,1778376641000,-150.0,0.00013345,2]
[421963550,1778376641000,-150.0,0.00013389,2]
[421963546,1778376641000,-150.0,0.0001336,2]
[421963548,1778376641000,-150.0,0.00013375,2]
[421963547,1778376641000,-150.0,0.00013368,2]
[421963553,1778376641000,-150.0,0.00013419,2]
[421963560,1778376641000,-150.0,0.00013478,2]
[421963564,1778376641000,-150.0,0.0001351,2]
[421963556,1778376641000,-2236.95670848,0.00013446,2]
[421963561,1778376641000,-150.0,0.00013488,2]
[421963600,1778376641000,-500.0,0.00013698,2]
[421963582,1778376641000,-9653.88218217,0.00013677,2]
[421963589,1778376641000,-500.0,0.00013698,2]
[421963622,1778376641000,-500.0,0.00013698,2]
[421963624,1778376641000,-593.60631339,0.00013698,2]
[421963626,1778376641000,-309.013254,0.00013698,2]
[421963628,1778376641000,-500.0,0.00013698,2]
[421963630,1778376641000,-500.0,0.00013698,2]
[421963629,1778376641000,-500.0,0.00013698,2]
[421963631,1778376641000,-500.0,0.00013698,2]
[421963627,1778376641000,-500.0,0.00013698,2]
[421963632,1778376641000,-500.0,0.00013698,2]
[421963637,1778376641000,-500.0,0.00013698,2]
[421963636,1778376641000,-500.0,0.00013698,2]
[421963633,1778376641000,-500.0,0.00013698,2]
[421963635,1778376641000,-500.0,0.00013698,2]
[421963639,1778376641000,-532.53898984,0.00013698,2]
[421963649,1778376641000,-500.0,0.00013698,2]
[421963638,1778376641000,-500.0,0.00013698,2]
[421963642,1778376641000,-500.0,0.00013698,2]
[421963640,1778376641000,-500.0,0.00013698,2]
[421963641,1778376641000,-500.0,0.00013698,2]
[421963650,1778376641000,-500.0,0.00013698,2]
[421963645,1778376641000,-500.0,0.00013698,2]
[421963644,1778376641000,-500.0,0.00013698,2]
[421963647,1778376641000,-500.0,0.00013698,2]
[421963646,1778376641000,-500.0,0.00013698,2]
[421963643,1778376641000,-500.0,0.00013698,2]
[421963648,1778376641000,-500.0,0.00013698,2]
[421963590,1778376641000,-500.0,0.00013698,2]
[421963620,1778376641000,-500.0,0.00013698,2]
[421963621,1778376641000,-422.88900491,0.00013698,2]
[421963634,1778376641000,-500.0,0.00013698,2]
[421963616,1778376641000,-500.0,0.00013698,2]
[421963591,1778376641000,-500.0,0.00013698,2]
[421963623,1778376641000,-500.0,0.00013698,2]
[421963599,1778376641000,-306.64215495,0.00013698,2]
[421963595,1778376641000,-500.0,0.00013698,2]
[421963596,1778376641000,-500.0,0.00013698,2]
[421963598,1778376641000,-500.0,0.00013698,2]
[421963592,1778376641000,-500.0,0.00013698,2]
[421963593,1778376641000,-500.0,0.00013698,2]
[421963594,1778376641000,-500.0,0.00013698,2]
[421963609,1778376641000,-500.0,0.00013698,2]
[421963607,1778376641000,-638.85275035,0.00013698,2]
[421963613,1778376641000,-500.0,0.00013698,2]
[421963602,1778376641000,-500.0,0.00013698,2]
[421963603,1778376641000,-500.0,0.00013698,2]
[421963597,1778376641000,-500.0,0.00013698,2]
[421963611,1778376641000,-500.0,0.00013698,2]
[421963619,1778376641000,-500.0,0.00013698,2]
[421963608,1778376641000,-500.0,0.00013698,2]
[421963625,1778376641000,-500.0,0.00013698,2]
[421963614,1778376641000,-500.0,0.00013698,2]
[421963618,1778376641000,-500.0,0.00013698,2]
[421963615,1778376641000,-500.0,0.00013698,2]
[421963610,1778376641000,-500.0,0.00013698,2]
[421963617,1778376641000,-500.0,0.00013698,2]
[421963605,1778376641000,-500.0,0.00013698,2]
[421963601,1778376641000,-500.0,0.00013698,2]
[421963606,1778376641000,-500.0,0.00013698,2]
[421963604,1778376641000,-500.0,0.00013698,2]
[421963612,1778376641000,-229.47870549,0.00013698,2]
[421963694,1778376642000,-500.0,0.00013698,2]
[421963693,1778376642000,-500.0,0.00013698,2]
[421963686,1778376642000,-500.0,0.00013698,2]
[421963687,1778376642000,-500.0,0.00013698,2]
[421963688,1778376642000,-500.0,0.00013698,2]
[421963681,1778376642000,-500.0,0.00013698,2]
[421963683,1778376642000,-500.0,0.00013698,2]
[421963685,1778376642000,-500.0,0.00013698,2]
[421963678,1778376642000,-500.0,0.00013698,2]
[421963684,1778376642000,-500.0,0.00013698,2]
[421963696,1778376642000,-425.97163219,0.00013698,2]
[421963682,1778376642000,-500.0,0.00013698,2]
[421963692,1778376642000,-541.504082,0.00013698,2]
[421963704,1778376642000,-500.0,0.00013698,2]
[421963697,1778376642000,-500.0,0.00013698,2]
[421963695,1778376642000,-500.0,0.00013698,2]
[421963699,1778376642000,-500.0,0.00013698,2]
[421963698,1778376642000,-500.0,0.00013698,2]
[421963702,1778376642000,-500.0,0.00013698,2]
[421963712,1778376642000,-500.0,0.00013698,2]
[421963713,1778376642000,-500.0,0.00013698,2]
[421963705,1778376642000,-500.0,0.00013698,2]
[421963701,1778376642000,-500.0,0.00013698,2]
[421963703,1778376642000,-509.86538559,0.00013698,2]
[421963709,1778376642000,-500.0,0.00013698,2]
[421963707,1778376642000,-500.0,0.00013698,2]
[421963690,1778376642000,-500.0,0.00013698,2]
[421963700,1778376642000,-500.0,0.00013698,2]
[421963691,1778376642000,-500.0,0.00013698,2]
[421963651,1778376642000,-500.0,0.00013698,2]
[421963679,1778376642000,-500.0,0.00013698,2]
[421963710,1778376642000,-500.0,0.00013698,2]
[421963652,1778376642000,-500.0,0.00013698,2]
[421963663,1778376642000,-500.0,0.00013698,2]
[421963654,1778376642000,-500.0,0.00013698,2]
[421963662,1778376642000,-500.0,0.00013698,2]
[421963655,1778376642000,-500.0,0.00013698,2]
[421963657,1778376642000,-500.0,0.00013698,2]
[421963660,1778376642000,-500.0,0.00013698,2]
[421963656,1778376642000,-500.0,0.00013698,2]
[421963658,1778376642000,-506.6446677,0.00013698,2]
[421963659,1778376642000,-500.0,0.00013698,2]
[421963661,1778376642000,-500.0,0.00013698,2]
[421963665,1778376642000,-500.0,0.00013698,2]
[421963675,1778376642000,-500.0,0.00013698,2]
[421963677,1778376642000,-500.0,0.00013698,2]
[421963676,1778376642000,-500.0,0.00013698,2]
[421963666,1778376642000,-500.0,0.00013698,2]
[421963669,1778376642000,-500.0,0.00013698,2]
[421963667,1778376642000,-500.0,0.00013698,2]
[421963664,1778376642000,-170.86107623,0.00013698,2]
[421963668,1778376642000,-500.0,0.00013698,2]
[421963672,1778376642000,-500.0,0.00013698,2]
[421963670,1778376642000,-500.0,0.00013698,2]
[421963673,1778376642000,-500.0,0.00013698,2]
[421963671,1778376642000,-500.0,0.00013698,2]
[421963674,1778376642000,-529.22196783,0.00013698,2]
[421963689,1778376642000,-500.0,0.00013698,2]
[421963680,1778376642000,-500.0,0.00013698,2]
[421963711,1778376642000,-500.0,0.00013698,2]
[421963653,1778376642000,-500.0,0.00013698,2]
[421963706,1778376642000,-500.0,0.00013698,2]
[421963743,1778376642000,-500.0,0.00013698,2]
[421963745,1778376642000,-500.0,0.00013698,2]
[421963746,1778376642000,-500.0,0.00013698,2]
[421963750,1778376642000,-500.0,0.00013698,2]
[421963762,1778376642000,-150.0,0.00013699,2]
[421963752,1778376642000,-503.71322572,0.00013698,2]
[421963760,1778376642000,-150.0,0.00013699,2]
[421963768,1778376642000,-2500.0,0.00013699,2]
[421963766,1778376642000,-195.42902025,0.00013699,2]
[421963756,1778376642000,-150.0,0.00013699,2]
[421963764,1778376642000,-150.0,0.00013699,2]
[421963758,1778376642000,-150.0,0.00013699,2]
[421963771,1778376642000,-9327.46,0.00013699,2]
[421963770,1778376642000,-166.66,0.00013699,2]
[421963773,1778376642000,-4354.16,0.00013699,2]
[421963772,1778376642000,-200.0,0.00013699,2]
[421963775,1778376642000,-1000.0,0.00013699,2]
[421963788,1778376642000,-1149.19312426,0.00013699,2]
[421963786,1778376642000,-1149.19312426,0.00013699,2]
[421963776,1778376642000,-200.0,0.00013699,2]
[421963774,1778376642000,-9999.99,0.00013699,2]
[421963784,1778376642000,-1149.19312426,0.00013699,2]
[421963777,1778376642000,-1149.19312426,0.00013699,2]
[421963779,1778376642000,-1149.19312426,0.00013699,2]
[421963778,1778376642000,-1149.19312426,0.00013699,2]
[421963780,1778376642000,-1149.19312426,0.00013699,2]
[421963782,1778376642000,-1149.19312426,0.00013699,2]
[421963744,1778376642000,-500.0,0.00013698,2]
[421963748,1778376642000,-500.0,0.00013698,2]
[421963781,1778376642000,-1149.19312426,0.00013699,2]
[421963742,1778376642000,-500.0,0.00013698,2]
[421963741,1778376642000,-500.0,0.00013698,2]
[421963715,1778376642000,-500.0,0.00013698,2]
[421963714,1778376642000,-500.0,0.00013698,2]